Cogmind - Beta 16 @@@ ROGUE MODE // 2026.01.04 @ 03:13:19 Player: C4PT41N Result: Destroyed by G3-AV0(R) with Subdweller Beam Cannon Performance ------------- Evolutions (0) 0 Regions Visited (2) 400 Robots Destroyed (35) 175 Value Destroyed (774) 774 Prototype IDs (12) 240 Alien Tech Used (0) 0 Bonus (-46) -46 TOTAL SCORE: 1543 Bonus ------- High Alert Combat Kills 35 Friendly Fire -81 Cogmind --------- Core Integrity 0/250 Matter 5/300 Energy 189/250 System Corruption 0% Temperature Cool (9) Movement Hovering (60) Location -10/Subcaves Parts ------- > --- POWER (1) -------- Ion Engine > --- PROPULSION (2) --- Improved Hover Unit > --- UTILITY (2) ------ (None) > --- WEAPON (2) ------- (None) > --- INVENTORY (5) ---- Signal Interpreter Improved Targeting Computer Peak State ------------ > --- POWER ------------ Ion Engine Light Ion Engine > --- PROPULSION ------- Improved Hover Unit Improved Hover Unit Improved Hover Unit > --- UTILITY ---------- Disposable Heat Sink Sensor Array Tower Shield > --- WEAPON ----------- Rocket Launcher Dirty Datajack Dirty Datajack > --- INVENTORY -------- Signal Interpreter Improved Targeting Computer [Rating: 45] Favorites ----------- Power Ion Engine Engine Ion Engine Propulsion Improved Hover Unit Leg Aluminum Leg Wheel Wheel Hover Unit Improved Hover Unit Utility Sensor Array Device Sensor Array Storage Small Storage Unit Hackware Hacking Suite Protection Tower Shield Weapon Rocket Launcher Energy Gun Small Laser Ballistic Gun Assault Rifle Launcher Rocket Launcher Special Weapon Mining Laser Special Melee Weapon Dirty Datajack Build | -11 -10 -10 ------- Run | Yrd Mat Sub Slots Evolved . | . . . Power . | . . . Propulsion . | . . . Utility . | . . . Weapon . | . . . Parts Attached 34 | 11 18 5 Power 7 | 1 6 . Engine 7 | 1 6 . Core . | . . . Reactor . | . . . Propulsion 9 | 4 4 1 Treads . | . . . Leg 2 | 2 . . Wheel 3 | 2 1 . Hover 4 | . 3 1 Flight . | . . . Utility 8 | 3 3 2 Device 4 | 2 1 1 Storage 2 | 1 1 . Processor . | . . . Hackware 1 | . 1 . Protection 1 | . . 1 Artifact . | . . . Weapon 10 | 3 5 2 Energy Gun 3 | 1 2 . Energy Cannon . | . . . Ballistic Gun 2 | 2 . . Ballistic Cannon . | . . . Launcher 2 | . 2 . Special Weapon 1 | . 1 . Impact Weapon . | . . . Slashing Weapon . | . . . Piercing Weapon . | . . . Special Melee Weapon 2 | . . 2 Unidentified Prototypes . | . . . Parts Lost 6 | . . 6 Power . | . . . Propulsion 2 | . . 2 Utility 1 | . . 1 Weapon 3 | . . 3 Highest Loss Streak 4 | . . 4 To Critical Strikes . | . . . Average Backups 4 | 3 5 2 Power . | . 1 . Propulsion 1 | 2 2 . Utility 1 | . 1 2 Weapon . | . . . Tool/Special . | . . . Unused Backups 6 | 1 3 2 Power . | . . . Propulsion 2 | 1 1 . Utility 3 | . 1 2 Weapon 1 | . 1 . Tool/Special . | . . . Average Slot Usage (%) 88 | . 98 75 Engine 13 | . 13 14 Wheel 10 | . 17 . Hover 15 | . 10 23 Device 13 | . 16 10 Storage 3 | . 6 . Hackware 4 | . 4 4 Protection 1 | . . 4 Ballistic Gun 10 | . 17 . Launcher 9 | . 6 12 Special Weapon 2 | . 3 1 Special Melee Weapon 1 | . . 3 Peak Build Rating 45 | 9 13 45 Average Rating 15 | 6 9 26 On Entrance 7 | . 9 12 Avg Prop Armor Cover (%) . | . . . Naked Turns . | . . . Heaviest Build 54 | 14 17 54 Greatest Support 21 | 20 20 21 Greatest Overweight (x) 3 | 1 3 2 Average Overweight (x) . | . . . Largest Inventory Capacity 8 | 8 8 5 Average Capacity 5 | 6 6 5 Most Carried 8 | 6 8 5 Average Carried 4 | 3 5 2 Final Capacity 5 | 5 5 5 Final Carried 5 | 5 5 2 Class Distribution -------------------- 100% | Mutant Dominant Class ---------------- Mutant | -10/Materials Mutant | -10/Subcaves Resources | -11 -10 -10 ----------- Run | Yrd Mat Sub Matter Collected 853 | 334 372 147 Remotely . | . . . Salvage Created 702 | 107 520 75 Parts 70 | 5 57 8 Haulers Intercepted . | . . . Recyclers Shooed . | . . . Parts Field Recycled . | . . . Retrieved Matter . | . . . Parts Self-Destructed 8 | . . 8 Prevented . | . . . Parts Restored . | . . . Kills | -11 -10 -10 ------- Run | Yrd Mat Sub Combat Hostiles Destroyed 21 | . 15 6 Guns 2 | . 2 . AOE 19 | . 13 6 Classes Destroyed 10 | 2 6 2 Worker 4 | . 4 . Builder 1 | . 1 . Tunneler 4 | 1 3 . Recycler 1 | 1 . . Operator 1 | . 1 . Watcher 3 | . 3 . Swarmer 7 | . 3 4 Grunt 12 | . 12 . Artisan 2 | . . 2 Subdweller 2 | . . 2 Best Kill Streak 15 | 1 15 4 Combat Bots Only 6 | . 6 4 Max Kills in Single Turn 4 | 1 4 4 Gunslinging . | . . . Exploded 4 | . 3 4 Melee . | . . . Uniques/NPCs Destroyed . | . . . Combat | -11 -10 -10 -------- Run | Yrd Mat Sub Hostile Shots Fired 95 | . 16 79 Missed 35 | . 4 31 Hits 60 | . 12 48 Projectile 60 | . 12 48 Damage Taken 981 | . 199 782 Core 274 | . 65 209 Absorbed by Shields . | . . . Core Remaining (%) 100 | 100 . . Volleys Fired 70 | 5 42 23 Largest 2 | 2 2 2 Hottest 100 | 60 100 100 Shots Fired 103 | 10 68 25 Gun 52 | 10 42 . Cannon . | . . . Launcher 38 | . 20 18 Special 13 | . 6 7 Kinetic 50 | 8 42 . Thermal 15 | 2 6 7 Explosive 38 | . 20 18 Electromagnetic . | . . . Robot Hit Streak 5 | 3 5 3 Robot Miss Streak 4 | 2 3 4 Penetration Max . | . . . Secondary Targets . | . . . Shots Hit Robots 60 | 5 30 25 Core Hits 52 | 3 34 15 Critical Kills . | . . . Critical Parts Destroyed . | . . . Critical Strikes . | . . . Melee Attacks 20 | . . 20 Impact . | . . . Slashing . | . . . Piercing 20 | . . 20 Sneak Attacks . | . . . Combat Hostiles . | . . . Follow-up Attacks . | . . . Damage Inflicted 2443 | 68 1695 680 Guns 302 | 68 234 . Cannons . | . . . Explosions 2115 | . 1461 654 Melee 26 | . . 26 Ramming . | . . . Kinetic 302 | 68 234 . Thermal 326 | . 326 . Explosive 1789 | . 1135 654 Electromagnetic . | . . . Impact . | . . . Slashing . | . . . Piercing 26 | . . 26 Highest Corruption . | . . . Average Corruption . | . . . Corruption Purged . | . . . Corruption Blocked . | . . . Overload Shots . | . . . Overflow Damage 215 | . 188 27 Projectiles . | . . . Explosions 215 | . 188 27 Melee . | . . . Knockbacks . | . . . Impact . | . . . Kinetic . | . . . Secondary . | . . . Self-Inflicted Damage 214 | . 61 153 Shots 8 | . 3 5 Rammed . | . . . Targets Rammed . | . . . Kicked . | . . . Crushed . | . . . Highest Temperature 66 | . 66 2 Average Temperature 26 | . 27 2 Received Heat Transfer 372 | . 78 294 Siege Activations . | . . . Martial Activations . | . . . Shielding Activations . | . . . Robots Disrupted . | . . . Combat Hostiles . | . . . Robots Corrupted . | . . . Combat Hostiles . | . . . Parts Fried . | . . . Impact Corruptions . | . . . Robots Melted . | . . . Combat Hostiles . | . . . Parts Melted . | . . . Heat Transferred 200 | . 200 . Parts Sabotaged . | . . . Parts Stolen . | . . . Parts Stripped . | . . . Power Chain Reactions . | . . . Alert | -11 -10 -10 ------- Run | Yrd Mat Sub Maximum Alert Level 2 | . 2 . Low Security (%) 65 | 100 63 . Level 1 13 | . 14 . Level 2 20 | . 21 . Level 3 . | . . . Level 4 . | . . . Level 5 . | . . . High Security . | . . . Max Security . | . . . Peak Influence 466 | 5 466 . Initial . | . . . Average 139 | . 149 . Influence Increases 787 | 10 652 125 Destroy 0b10 Robot/C 380 | . 300 80 Destroy 0b10 Robot/NC 70 | 10 60 . Destroy Leader 76 | . 76 . Disable Machine 105 | . 105 . Destroy Structure 111 | . 111 . Lose Combat Pursuer 45 | . . 45 Influence Decreases 738 | 10 208 520 Entered New Map 214 | . . 214 Time Decay 464 | 10 208 246 Lost Part 60 | . . 60 Squads Dispatched 3 | . 3 . Investigation 1 | . 1 . Extermination . | . . . Reinforcement 2 | . 2 . Assault . | . . . Garrison . | . . . Intercept . | . . . Searches Triggered . | . . . Construction Impeded . | . . . Haulers Reinforced . | . . . Active Scanning Responses . | . . . Cargo Convoy Interrupts . | . . . Stealth | -11 -10 -10 --------- Run | Yrd Mat Sub Distress Signals . | . . . Communications Jammed . | . . . Distress Signals . | . . . Times Spotted 24 | . 16 8 Peak Tracking Total 6 | . 3 6 Tactical Retreats 1 | . . 1 Traps | -11 -10 -10 ------- Run | Yrd Mat Sub Traps Triggered 1 | . 1 . Indirectly . | . . . Trap Hack Attempts . | . . . Triggered . | . . . Disarmed . | . . . Reprogrammed . | . . . Reused . | . . . Traps Extracted . | . . . Installed . | . . . Triggered . | . . . Machines | -11 -10 -10 ---------- Run | Yrd Mat Sub Machines Disabled 14 | . 7 7 Max in Single Turn 4 | . 4 3 Machines Repaired . | . . . Machines Dismantled . | . . . Machines Sabotaged . | . . . Overloaded Fab Kills . | . . . Hacking | -11 -10 -10 --------- Run | Yrd Mat Sub Machines Accessed 4 | . 3 1 Terminals 3 | . 3 . Fabricators . | . . . Repair Stations . | . . . Recycling Units . | . . . Scanalyzers . | . . . Garrison Access . | . . . Total Hacks 9 | . 6 3 Successful 3 | . . 3 Failed 6 | . 6 . Catastrophic . | . . . Database Lockouts . | . . . Manual 6 | . 6 . Terminals 6 | . 6 . Fabricators . | . . . Repair Stations . | . . . Recycling Units . | . . . Scanalyzers . | . . . Garrison Access . | . . . Terminal Hacks 3 | . . 3 Record 2 | . . 2 Proto ID Catalog 1 | . . 1 Fabricator Hacks . | . . . Repair Station Hacks . | . . . Recycling Unit Hacks . | . . . Scanalyzer . | . . . Garrison Access Hacks . | . . . Unauthorized Hacks . | . . . Terminals . | . . . Fabricators . | . . . Repair Stations . | . . . Recycling Units . | . . . Scanalyzers . | . . . Garrison Access . | . . . Data Cores Recovered . | . . . Used . | . . . Hacking Detections 3 | . 3 . Full Trace Events . | . . . Feedback Events . | . . . Feedback Blocked . | . . . Robot Schematics Acquired . | . . . Robots Built . | . . . Authchips . | . . . Time . | . . . Total Robot Build Rating . | . . . Part Schematics Acquired . | . . . Parts Built . | . . . Authchips . | . . . Time . | . . . Total Part Build Rating . | . . . Part Studies Acquired . | . . . Parts Repaired . | . . . Time . | . . . Parts Recycled . | . . . Recycled Matter . | . . . Retrieved Matter . | . . . Retrieved Components . | . . . Parts Scanalyzed . | . . . Part Schematics Acquired . | . . . Parts Damaged . | . . . Bothacking | -11 -10 -10 ------------ Run | Yrd Mat Sub Used RIF Installer . | . . . Robots Hacked . | . . . Non-combat . | . . . Combat . | . . . Robot Hacks Applied . | . . . Relay Couplers Released . | . . . Fabnet Peak Effective % . | . . . Robots Rewired . | . . . Allies Hacked . | . . . Hacks Repelled . | . . . Allies | -11 -10 -10 -------- Run | Yrd Mat Sub Total Allies . | . . . Largest Group . | . . . Highest-Rated Group . | . . . Highest-Rated Ally . | . . . Total Orders . | . . . Ally Attacks . | . . . Total Damage . | . . . Kills . | . . . Allies Corrupted . | . . . Allies Melted . | . . . Intel | -11 -10 -10 ------- Run | Yrd Mat Sub Active Infowar (turns) 2708 | 43 1587 1078 Sensors 1458 | . 380 1078 Terrain 333 | 43 290 . Seismic 1243 | 36 1207 . Robot Analysis Total . | . . . Derelict Logs Recovered 2 | . . 2 Drone Launches . | . . . Drone Recoveries . | . . . Exploration | -11 -10 -10 ------------- Run | Yrd Mat Sub Turns Passed 2860 | 114 1623 1123 Spaces Moved 2024 | 89 915 1020 Core 12 | 6 1 5 Treads . | . . . Legs 16 | 16 . . Wheels 273 | 67 206 . Hover 1723 | . 708 1015 Flight . | . . . Fastest Speed 50 | 50 56 56 Average Speed 82 | 85 61 101 Slowest Speed 200 | 120 200 172 Overloaded Moves . | . . . Propulsion Burnouts . | . . . Robots Hopped . | . . . Potential Cave-ins . | . . . Cave-ins Triggered . | . . . Exploration Rate (%) 35 | 4 72 30 Regions Visited 2 Branch Regions 1 Pre-discovered Areas 1 | . . 1 Known Exits Taken . | . . . Unknown Exits Taken 2 | 1 1 . Scrap Searched 2 | . . 2 Spaces Dug 4 | . 4 . Terrain Destroyed 246 | . 127 119 Melee . | . . . Projectile 4 | . 4 . AOE 242 | . 123 119 Terrain Rammed . | . . . Walls Destroyed . | . . . Machines Disabled . | . . . Actions | -11 -10 -10 --------- Run | Yrd Mat Sub Total 3087 | 113 1898 1076 Wait 884 | . 884 . Move 2022 | 88 914 1020 Hop . | . . . Pick Up 16 | 5 10 1 Fast Attach 28 | 10 12 6 Attach 6 | 1 2 3 Detach 5 | 2 2 1 Swap 7 | . 7 . Drop 29 | 2 25 2 Fire 70 | 5 42 23 Melee 20 | . . 20 Ram . | . . . Kick . | . . . Crush . | . . . Escape Stasis . | . . . Rewire . | . . . Trap . | . . . Miscellaneous . | . . . Route ------- -11/Scrapyard -10/Materials (discovered 3 exits: [*Mat x2] / *Sub) -10/Subcaves History --------- Turn | Location | Event 9 | -11/Scrapyard | Discovered new exit (range 15) 115 | -11/Scrapyard | Entered Materials 306 | -10/Materials | Build established: Mutant 1172 | -10/Materials | Discovered new exit (range 15) 1305 | -10/Materials | Discovered new exit (range 12) 1509 | -10/Materials | Discovered new exit (range 9) 1738 | -10/Materials | Entered Subcaves 1739 | -10/Subcaves | Shifting Twisted Machinery released Sub. Laser 1740 | -10/Subcaves | Shifting Twisted Machinery released Battle Cannon 1797 | -10/Subcaves | Learned location of Zion (-6) 1797 | -10/Subcaves | Met a Zionite searching for "candidates" 1983 | -10/Subcaves | Learned 4 Materials zone layouts 2089 | -10/Subcaves | Visited 4L-MR0's lab 2122 | -10/Subcaves | Found Tower Shield 2125 | -10/Subcaves | Attached Tower Shield, gained temporary slots: Power, Propulsion x2, Utility x2, Weapon x2 2808 | -10/Subcaves | Disturbed a concealed Subdweller 2847 | -10/Subcaves | Core integrity fell below 50% 2854 | -10/Subcaves | Core integrity fell below 20% 2861 | -10/Subcaves | Destroyed by G3-AV0(R) with Subdweller Beam Cannon Last Messages --------------- 02837_ Splicing G3-AV0(R)... 02837_ G3-AV0(R) system unaffected. 02838_ Splicing G3-AV0(R)... 02838_ G3-AV0(R) system unaffected. 02838_ Splicing G3-AV0(R)... 02838_ G3-AV0(R) system unaffected. 02839_ Splicing G3-AV0(R)... 02839_ G3-AV0(R) system unaffected. 02839_ Splicing G3-AV0(R)... 02839_ G3-AV0(R) system unaffected. 02840_ Splicing G3-AV0(R)... 02840_ G3-AV0(R) system unaffected. 02844_ Subatomizers dissect the Disposable Heat Sink. 02845_ G3-AV0(R) affixes Scrap Shield Fragment to Scrap Shield. 02851_ Rocket Launcher destroyed. 02853_ Imp. Hover Unit destroyed. 02854_ Dirty Datajack expended. 02860_ Acquired Imp. Hover Unit. Map ----- +----------------------------------------------------+ | ????????????????????????????????????????## ## | | ???????????????????????????????????????## | | ???????????????????????????????????????# | | ???????????????????????????????????????### | | ?????????????????????????????????????????# | | ?????????????????????????????????????????## ##### | | ??????????????????????????????????????????####???? | | ?????????????????????????????????????????????????? | | ?????????????????????????????????????????????????? | | ?????????????????????????????????????????????????? | | ?????????????????????????????????????????????????? | | ?????????????????????????????????????????????????? | | ?????????????????????????????????????????????????? | | ?????????????????????????????????????????????????? | | ?????????????????????????????????????????????????? | | ?????????????????????????????????????????????????? | | ?????????????????????????????????????????????????? | | ?????????????????????????????????????????????????? | | ?????????????????????????????????????????????????? | | ?????????????????????????###?????????????????????? | | ??????????????????????#### ####??????????????????? | | ??????????????????????# # #####????###????#### | | ??????????????????????# # ###### ##??## | | ???????????????????#??# #?## | | ???????????????????# ##<# ### ## #### | | ???????????????????# # @ ! ##?##### #?# | | ???????????????????#R ## / #?????# ### | | ???????????????????######## #####??# ## #### | | ??????????????????????????# ### ##?# #### | | ??????????????????????????# ### ### # | | ??????????????????????????##### | | ???????????????????????????# | | ???????????????????????????## | | ????????????????????????????## | | ?????????????????????????????## # | | ???????????????????????????#### # ##### | | ???????????????????????????# ####### ##???? | | ???????????????????????????### #????? #???? | | ?????????????????????????????## ##???? #???? | | ??????????????????????????????# ###?? #???? | | ??????????????????????????##### ## #???? | | ???????????????????????#### #???? | | ??????????????????????## ?? | | ?????????????????????## ## #### ## ??? | | ?????????????????????# " ###?###??# #????? | | ?????????????????????# "" #?????????? ##????? | | ?????????????????????## ""] ###????????????????? | | ??????????????????????## "" [#????????????????? | | ???????????????????????#" "" "#????????????????? | | ??????????????????????##" "####????????????????? | +----------------------------------------------------+ Best States ------------- Heat Dissipation 25 Coolant Potential 50 Energy Generation 15 Energy Capacity 275 Matter Stores 300 Matter Capacity 300 Sight Range 16 Robot Scan Range 14 Terrain Scan Range 16 Terrain Scan Density 10 Armor Coverage 2000 Evasion (%) 53 Offensive Hacking 10 Item Schematics ----------------- None Robot Schematics ------------------ None Fabricated ------------ Nothing Repaired ---------- Nothing Studied --------- None Alien Tech Used ----------------- None Achievements -------------- Art Critic Mistaken Identity Challenges ------------ None Game ------ Seed ZipPhasingLoader Manual? 0 Play Time 00:32:17 Cumulative 12.5 hours Start 2026.01.04 @ 02:35:37 End 2026.01.04 @ 03:13:19 Sessions 1 Manual Loads 0 Difficulty Rogue Special Mode None Game No. 15 Rogue 15 Adventurer 0 Explorer 0 Win Type - Total 0 Types 0/0/0/0/0/0/0/0/0/0 Lore% 16 Gallery% 13 Achievement% 14 Wizard Run 0 Options --------- Layout 1 ASCII 0 Keyboard 0 Movement Arrows Keybinds 0 Fullscreen 1 Font 24/Smallcaps Map View 50x40 Zoom Use 0% Tactical HUD 1 Map Filters NONE Filters NONE Steam 1 RUN: 6328c847-aad5-4dba-9f77-c68dfe86e15e